bitfinex/quotes_BTCUSD_20230117
["timestamp","ask_amount","ask_price","bid_price","bid_amount"]
[1673951105738,0.40316825,21139.0,21138.0,0.0758]
[1673951105997,0.26171349,21139.0,21138.0,0.0758]
[1673951106250,0.1416936,21139.0,21138.0,0.0758]
[1673951107277,0.2316936,21139.0,21138.0,0.0758]
[1673951107527,0.23205314,21139.0,21138.0,0.0758]
[1673951107793,0.44425451,21139.0,21137.0,1.022273]
[1673951108032,0.23205314,21139.0,21137.0,1.022273]
[1673951108549,0.14205314,21139.0,21137.0,1.022273]
[1673951108797,0.23205314,21139.0,21137.0,1.022273]
[1673951110075,0.1416936,21138.0,21137.0,1.022273]
[1673951110325,0.21220137,21138.0,21136.0,0.473104]
[1673951110618,0.14169742,21137.0,21136.0,0.473104]
[1673951111084,0.14169742,21138.0,21136.0,0.773104]
[1673951111344,0.089,21138.0,21136.0,0.94623]
[1673951111597,0.35425833,21139.0,21137.0,0.3]
[1673951112358,0.14169742,21138.0,21137.0,0.3]
[1673951113610,0.23069742,21138.0,21137.0,0.3]
[1673951113913,0.14169742,21138.0,21137.0,0.3]
[1673951114164,0.23069742,21138.0,21137.0,0.773104]
[1673951114466,0.089,21138.0,21137.0,0.773104]
[1673951114725,0.089,21138.0,21137.0,1.246208]
[1673951116692,0.089,21138.0,21137.0,1.322308]
[1673951117739,0.53792833,21140.0,21137.0,1.322308]
[1673951118012,0.67962575,21140.0,21138.0,0.0761]
[1673951118315,0.67962575,21140.0,21138.0,0.549177]
[1673951118545,0.00035954,21139.0,21138.0,0.54906635]
[1673951119050,0.14205696,21139.0,21138.0,0.54906635]
[1673951119308,0.14205696,21139.0,21138.0,0.07598935]
[1673951119568,0.14205696,21139.0,21137.0,0.774104]
[1673951119830,0.14205696,21139.0,21137.0,0.773104]
[1673951120089,0.22205696,21139.0,21138.0,0.001]
[1673951120358,0.08035954,21139.0,21138.0,0.001]
[1673951120622,0.22205696,21139.0,21138.0,0.001]
[1673951121005,0.43425833,21139.0,21138.0,0.001]
[1673951121151,0.14205696,21139.0,21137.0,0.473104]
[1673951121418,0.18305696,21139.0,21137.0,0.474104]
[1673951121676,0.14169742,21138.0,21137.0,0.473104]
[1673951122216,0.35389879,21138.0,21137.0,0.473104]
[1673951122484,0.35389879,21138.0,21136.0,0.548905]
[1673951122750,0.29256091,21139.0,21138.0,0.001]
[1673951123011,0.36273216,21139.0,21136.0,1.02203]
[1673951123271,0.38586621,21138.0,21137.0,0.01]
[1673951123557,0.38086621,21138.0,21136.0,1.02203]
[1673951123811,0.17766484,21138.0,21136.0,1.03203]
[1673951124082,0.38086621,21138.0,21136.0,1.02203]
[1673951124364,0.38086621,21138.0,21136.0,1.03203]
[1673951124618,0.38086621,21138.0,21136.0,1.02203]
[1673951124619,0.02698982,21138.0,21136.0,1.02203]
[1673951124896,0.38986621,21138.0,21136.0,1.03203]
[1673951127583,0.38978647,21138.0,21136.0,1.03203]
[1673951127842,0.46350102,21137.0,21136.0,0.01]
[1673951128373,0.68421257,21137.0,21136.0,0.01]
[1673951129202,0.4720112,21137.0,21134.0,1.022407]
[1673951129455,0.37138657,21137.0,21135.0,0.473141]
[1673951129718,0.1591852,21137.0,21135.0,0.548841]
[1673951129985,0.37138657,21137.0,21135.0,0.548841]
[1673951130388,0.1501852,21137.0,21135.0,0.548841]
[1673951130615,0.15430799,21137.0,21135.0,0.473141]
[1673951130839,0.50819456,21137.0,21135.0,0.01]
[1673951131067,0.4635112,21136.0,21135.0,0.01]
[1673951131288,0.4635112,21136.0,21135.0,0.00978118]
[1673951131548,0.1416852,21136.0,21135.0,0.00978118]
[1673951131803,0.37038657,21137.0,21135.0,0.00978118]
[1673951132062,0.1581852,21137.0,21135.0,0.08578118]
[1673951132343,0.321826,21136.0,21135.0,0.08578118]
[1673951132595,0.321826,21136.0,21135.0,0.076]
[1673951132876,0.1416852,21136.0,21135.0,0.076]
[1673951133142,0.00035954,21136.0,21135.0,0.076]
[1673951133396,0.36238657,21137.0,21135.0,0.076]
[1673951133913,0.36238657,21137.0,21135.0,0.376]
[1673951134363,0.008,21136.0,21135.0,0.386]
[1673951134615,0.00885954,21137.0,21135.0,0.386]
[1673951134883,0.01685954,21137.0,21135.0,0.386]
[1673951135614,0.01685954,21137.0,21135.0,0.859142]
[1673951136126,0.15854474,21137.0,21135.0,0.559142]
[1673951136382,0.321826,21136.0,21135.0,0.086]
[1673951137148,0.1416852,21136.0,21135.0,0.086]
[1673951137664,0.1416852,21136.0,21135.0,0.076]
[1673951137936,0.1496852,21136.0,21135.0,0.086]
[1673951138945,0.008,21136.0,21135.0,0.086]
[1673951139701,0.008,21136.0,21135.0,0.559148]
[1673951140221,0.1496852,21136.0,21135.0,0.086]
[1673951140697,0.69221257,21136.0,21135.0,0.01]
[1673951140950,0.4800112,21136.0,21135.0,0.01]
[1673951141201,0.37038657,21136.0,21135.0,0.01]
[1673951141487,0.0165,21136.0,21135.0,0.008904]
[1673951141835,0.10247,21136.0,21135.0,0.008904]
[1673951142034,0.77818257,21136.0,21135.0,0.008904]
[1673951142296,1.06567807,21136.0,21135.0,0.008904]
[1673951142544,0.55052737,21136.0,21135.0,0.008904]
[1673951145194,0.83346253,21136.0,21135.0,0.008904]
[1673951145423,0.55052737,21136.0,21135.0,0.008904]
[1673951145730,0.69220636,21136.0,21135.0,0.008904]
[1673951146265,0.48000499,21136.0,21135.0,0.008904]
[1673951146515,0.69220636,21136.0,21135.0,0.008904]
[1673951146774,0.0165,21136.0,21135.0,0.120504]
[1673951147285,0.008,21136.0,21135.0,0.893652]
[1673951147569,0.0165,21136.0,21135.0,0.893652]
[1673951147827,0.0165,21136.0,21135.0,0.593652]
[1673951148352,0.37038036,21136.0,21135.0,0.120504]
[1673951148615,1.40385992,21136.0,21135.0,0.008904]
[1673951148878,0.90595519,21136.0,21135.0,0.008904]
[1673951149169,1.11815656,21136.0,21135.0,0.008904]
[1673951149420,0.97646869,21136.0,21135.0,0.008904]
[1673951149699,1.11815096,21136.0,21135.0,0.008904]
[1673951149967,0.97646869,21136.0,21135.0,0.008904]
[1673951150223,1.11815075,21136.0,21135.0,0.008904]
[1673951151462,1.25940385,21136.0,21135.0,0.008904]
[1673951151744,1.25140385,21136.0,21134.0,0.1116]
[1673951152001,0.46349818,21135.0,21134.0,0.1116]
[1673951152360,0.67569955,21135.0,21134.0,0.1116]
[1673951152525,2.74476823,21135.0,21132.0,0.01506033]
[1673951152777,0.14168618,21133.0,21132.0,0.01506033]
[1673951153034,0.47201218,21133.0,21132.0,0.01506033]
[1673951153318,1.08330827,21133.0,21132.0,0.01506033]
[1673951153654,0.68447076,21133.0,21132.0,0.01506033]
[1673951153836,0.68447076,21133.0,21132.0,0.01606033]
[1673951154091,0.47194148,21133.0,21132.0,0.01506033]
[1673951154386,0.68947076,21133.0,21132.0,0.02306033]
[1673951154642,0.47694148,21133.0,21132.0,0.02306033]
[1673951155162,0.68947076,21133.0,21132.0,0.02306033]
[1673951155425,1.49424128,21133.0,21132.0,0.02306033]
[1673951155947,1.63579641,21133.0,21132.0,0.02306033]
[1673951156461,0.95043367,21133.0,21132.0,0.02306033]
[1673951156978,1.16296295,21133.0,21132.0,0.02306033]
[1673951157239,1.05797821,21133.0,21132.0,0.02306033]
[1673951157542,1.16296295,21133.0,21132.0,0.02306033]
[1673951157732,0.47724067,21133.0,21132.0,0.02306033]
[1673951159579,0.33568554,21133.0,21132.0,0.02306033]
[1673951160184,0.47724067,21133.0,21132.0,0.02306033]
[1673951160872,0.68976995,21133.0,21132.0,0.02306033]
[1673951161143,1.00362642,21133.0,21132.0,0.02306033]
[1673951161673,1.00363917,21133.0,21132.0,0.02306033]
[1673951161930,0.86207129,21133.0,21132.0,0.02306033]
[1673951162454,0.54821482,21133.0,21132.0,0.022973]
[1673951162737,0.6897826,21133.0,21132.0,0.022973]
[1673951162974,0.54821482,21133.0,21132.0,0.022973]
[1673951163490,0.83158719,21133.0,21132.0,0.022973]
[1673951163762,0.6897811,21133.0,21132.0,0.022973]
[1673951163986,0.47725182,21133.0,21132.0,0.022973]
[1673951164275,0.6897811,21133.0,21132.0,0.022973]
[1673951164533,0.47725182,21133.0,21132.0,0.022973]
[1673951165598,0.335326,21133.0,21132.0,0.022973]
[1673951165851,0.335326,21133.0,21132.0,0.134673]
[1673951166107,0.0135,21133.0,21132.0,0.134673]
[1673951166888,0.335326,21133.0,21132.0,0.134673]
[1673951167998,0.0135,21133.0,21132.0,0.134673]
[1673951169253,0.01385954,21133.0,21132.0,0.134673]
[1673951169512,0.15542582,21133.0,21132.0,0.134673]
[1673951169766,0.01385954,21133.0,21132.0,0.134673]
[1673951170024,0.0135,21133.0,21132.0,0.134673]
[1673951171084,0.47689228,21133.0,21132.0,0.134673]
[1673951171365,0.33568554,21133.0,21132.0,0.134673]
[1673951172380,0.01385954,21133.0,21132.0,0.134673]
[1673951172628,0.0135,21133.0,21132.0,0.134673]
[1673951173414,0.33568554,21133.0,21132.0,0.134673]
[1673951174180,0.61378981,21133.0,21132.0,0.022973]
[1673951174450,0.68475281,21133.0,21132.0,0.022973]
[1673951174710,0.68978794,21133.0,21132.0,0.022973]
[1673951174975,0.78978794,21133.0,21132.0,0.022973]
[1673951175244,0.71905791,21133.0,21132.0,0.022973]
[1673951175502,2.96303262,21133.0,21132.0,0.022973]
[1673951175811,3.39942596,21133.0,21132.0,0.022973]
[1673951176030,2.57903894,21133.0,21132.0,0.022973]
[1673951176289,1.77781817,21133.0,21132.0,0.022973]
[1673951176544,0.95045885,21133.0,21132.0,0.022973]
[1673951177092,1.09225091,21133.0,21132.0,0.022973]
[1673951177319,0.68077491,21133.0,21132.0,0.022973]
[1673951177571,0.68077491,21133.0,21132.0,0.134773]
[1673951177572,0.46840344,21133.0,21132.0,0.134773]
[1673951178090,1.69980102,21133.0,21132.0,0.022973]
[1673951178368,2.05346997,21133.0,21132.0,0.022973]
[1673951178611,2.72899229,21133.0,21132.0,0.022973]
[1673951178883,3.01217968,21133.0,21132.0,0.022973]
[1673951179141,1.18454787,21133.0,21132.0,0.022973]
[1673951179400,0.68927235,21133.0,21132.0,0.022973]
[1673951179710,0.68928704,21133.0,21132.0,0.022973]
[1673951179924,0.47691717,21133.0,21132.0,0.022973]
[1673951180178,0.54769587,21133.0,21132.0,0.022973]
[1673951180997,0.54805541,21133.0,21132.0,0.022973]
[1673951181221,0.68964626,21133.0,21132.0,0.022973]
[1673951181474,0.83123846,21133.0,21132.0,0.022973]
[1673951181989,2.95890868,21133.0,21132.0,0.022973]
[1673951182245,3.90937833,21133.0,21132.0,0.022973]
[1673951182514,0.09762829,21131.0,21130.0,0.001]
[1673951182779,0.92367422,21131.0,21130.0,0.001]
[1673951183033,0.78203929,21131.0,21130.0,0.001]
[1673951183632,0.56958789,21131.0,21130.0,0.001]
[1673951184076,0.87403929,21131.0,21130.0,0.001]
[1673951184342,1.2984669,21131.0,21130.0,0.001]
[1673951184612,0.78203929,21131.0,21130.0,0.001]
[1673951184920,0.56958789,21131.0,21130.0,0.001]
[1673951185181,0.34198429,21131.0,21130.0,0.001]
[1673951185435,0.11215829,21131.0,21130.0,0.001]
[1673951185694,0.43398429,21131.0,21130.0,0.001]
[1673951186542,0.78229626,21131.0,21130.0,0.001]
[1673951187055,0.88229626,21131.0,21130.0,0.001]
[1673951187511,0.74543569,21131.0,21130.0,0.001]
[1673951187771,1.02870422,21131.0,21130.0,0.001]
[1673951188068,0.88716224,21131.0,21130.0,0.001]
[1673951188323,0.64543569,21131.0,21130.0,0.001]
[1673951188578,0.7871631,21131.0,21130.0,0.001]
[1673951189036,1.07748071,21131.0,21130.0,0.001]
[1673951189041,1.0357533,21131.0,21130.0,0.001]
[1673951189297,0.9447533,21131.0,21130.0,0.001]
[1673951189565,0.92990957,21131.0,21130.0,0.001]
[1673951189817,1.02990957,21131.0,21130.0,0.001]
[1673951190074,2.48811539,21131.0,21130.0,0.001]
[1673951190338,0.1,21130.0,21128.0,0.074532]
[1673951190603,0.416296,21129.0,21128.0,0.074532]
[1673951190853,0.77072515,21129.0,21128.0,0.074532]
[1673951191627,0.77074255,21129.0,21128.0,0.074532]
[1673951191877,0.77074255,21129.0,21127.0,0.01646731]
[1673951192136,0.321826,21128.0,21127.0,0.01646731]
[1673951193422,0.36294655,21129.0,21127.0,0.01646731]
[1673951193691,0.09,21128.0,21127.0,0.01646731]
[1673951194225,0.09035954,21128.0,21127.0,0.01646731]
[1673951194479,0.00035954,21128.0,21127.0,0.01646731]
[1673951194759,0.00035954,21128.0,21126.0,0.0761]
[1673951196013,0.04635954,21128.0,21126.0,0.0761]
[1673951196267,0.1881486,21128.0,21126.0,0.0761]
[1673951196567,0.36275661,21127.0,21126.0,0.0761]
[1673951196832,0.36275661,21127.0,21125.0,0.01560983]
[1673951196833,0.1,21126.0,21125.0,0.01560983]
[1673951197089,2.55805595,21126.0,21125.0,0.01560983]
[1673951197339,2.771193,21126.0,21125.0,0.01560983]
[1673951197601,2.3261006,21126.0,21125.0,0.01560983]
[1673951197866,2.9233218,21126.0,21125.0,0.01560983]
[1673951198113,2.63736554,21126.0,21125.0,0.01560983]
[1673951198371,3.44701274,21126.0,21125.0,0.01560983]
[1673951198625,4.78121849,21126.0,21125.0,0.01560983]
[1673951199254,4.49797924,21126.0,21125.0,0.01560983]
[1673951199407,3.32757768,21126.0,21125.0,0.01560983]
[1673951199663,3.02431534,21126.0,21125.0,0.01560983]
[1673951199907,3.92828425,21126.0,21125.0,0.01560983]
[1673951200159,3.32856779,21126.0,21125.0,0.01560983]
[1673951200442,3.04554922,21126.0,21125.0,0.01560983]
[1673951200659,2.95354922,21126.0,21125.0,0.01560983]
[1673951200917,2.79986929,21126.0,21125.0,0.01560983]
[1673951201166,0.85401732,21126.0,21125.0,0.20633578]
[1673951201421,0.93751732,21126.0,21125.0,0.01560983]
[1673951201675,0.61569132,21126.0,21125.0,0.01560983]
[1673951201941,0.93751732,21126.0,21125.0,0.01560983]
[1673951202191,1.07901515,21126.0,21125.0,0.01560983]
[1673951202440,1.15521515,21126.0,21125.0,0.01560983]
[1673951202702,1.3674676,21126.0,21125.0,0.01560983]
[1673951202957,2.13600692,21126.0,21125.0,0.01560983]
[1673951203193,2.47171078,21126.0,21125.0,0.01560983]
[1673951203449,0.1,21125.0,21124.0,0.00911543]
[1673951203704,1.58999914,21125.0,21124.0,0.00911543]
[1673951204306,2.24044512,21125.0,21124.0,0.00911543]
[1673951204476,2.67291767,21125.0,21124.0,0.00911543]
[1673951204728,2.86393624,21125.0,21124.0,0.00911543]
[1673951204974,3.55388983,21125.0,21124.0,0.00911543]
[1673951205228,2.86365135,21125.0,21124.0,0.00911543]
[1673951205489,3.55358342,21125.0,21124.0,0.00911543]
[1673951206271,3.46158342,21125.0,21124.0,0.00911543]
[1673951206535,0.63666292,21124.0,21123.0,0.01377393]
[1673951206847,4.01612421,21124.0,21123.0,7.393e-05]
[1673951207047,4.01612421,21124.0,21121.0,0.01726593]
[1673951207048,0.1,21123.0,21121.0,0.01726593]
[1673951207316,2.03302068,21122.0,21121.0,0.01726593]
[1673951207568,2.710009,21122.0,21121.0,0.01726593]
[1673951207826,2.710009,21122.0,21118.0,0.02547677]
[1673951207827,0.1,21121.0,21118.0,0.02547677]
[1673951208116,0.0762,21119.0,21118.0,0.02547677]
[1673951208337,0.40661,21119.0,21118.0,0.02547677]
[1673951208588,0.50661,21119.0,21118.0,0.02547677]
[1673951208848,0.32191,21119.0,21118.0,0.02547677]
[1673951209636,0.42191,21119.0,21118.0,0.02547677]
[1673951210143,0.51391,21119.0,21118.0,0.02547677]
[1673951210666,0.73612137,21119.0,21118.0,0.02547677]
[1673951210917,1.37588307,21119.0,21117.0,6.6e-06]
[1673951211167,0.03209421,21117.0,21115.0,0.01906308]
[1673951211418,0.33041,21116.0,21115.0,0.01906308]
[1673951211671,0.03209421,21117.0,21115.0,0.20978903]
[1673951211993,0.03209421,21117.0,21116.0,0.47401]
[1673951212460,0.03209421,21117.0,21116.0,0.39801]
[1673951212462,0.03209421,21117.0,21116.0,0.58873595]
[1673951212696,0.03209421,21117.0,21116.0,1.01433957]
[1673951213201,0.03209421,21117.0,21116.0,1.61433957]
[1673951213686,0.04109421,21117.0,21116.0,1.62233957]
[1673951213931,0.03215421,21117.0,21116.0,1.68993957]
[1673951214179,0.03215421,21117.0,21116.0,0.77361]
[1673951214431,0.03215421,21117.0,21116.0,0.62191]
[1673951214698,0.04015421,21117.0,21116.0,0.62991]
[1673951215446,0.04015421,21117.0,21116.0,0.70611]
[1673951215707,0.03215421,21117.0,21116.0,0.69811]
[1673951215960,0.03215421,21117.0,21116.0,0.93337697]
[1673951215961,0.04115421,21117.0,21116.0,0.93337697]
[1673951216222,0.03215421,21117.0,21116.0,0.69811]
[1673951216469,0.11515421,21117.0,21116.0,0.69911]
[1673951216714,0.03215421,21117.0,21116.0,0.69811]
[1673951216953,0.11515421,21117.0,21116.0,0.92637697]
[1673951217187,0.03215421,21117.0,21116.0,0.92537697]
[1673951217437,0.11515421,21117.0,21116.0,0.92637697]
[1673951217689,0.11551375,21117.0,21116.0,0.69911]
[1673951217927,0.11551375,21117.0,21116.0,0.32291]
[1673951218165,0.11551375,21117.0,21116.0,0.001]
[1673951218436,0.11515421,21117.0,21116.0,0.001]
[1673951218921,0.11551375,21117.0,21116.0,0.001]
[1673951219160,0.03251375,21117.0,21115.0,0.09516308]
[1673951219400,0.03251375,21117.0,21115.0,0.01906308]
[1673951219915,0.03215421,21117.0,21116.0,0.001]
[1673951220185,0.11515421,21117.0,21116.0,0.001]
[1673951220428,0.03251375,21117.0,21116.0,0.16177]
[1673951220666,0.11515421,21117.0,21116.0,0.957254]
[1673951220914,0.03215421,21117.0,21116.0,1.51495814]
[1673951221153,0.03215421,21117.0,21116.0,1.51595814]
[1673951221390,0.11515421,21117.0,21116.0,1.51595814]
[1673951223548,0.11515421,21117.0,21116.0,1.90356214]
[1673951224071,0.11509421,21117.0,21116.0,1.97976214]
[1673951225407,0.03209421,21117.0,21116.0,1.97876214]
[1673951225946,0.03209421,21117.0,21116.0,1.344858]
[1673951226202,0.04009421,21117.0,21116.0,1.359858]
[1673951226983,0.03245375,21117.0,21116.0,1.344858]
[1673951227292,0.03245375,21117.0,21116.0,1.658858]
[1673951227293,0.03609421,21117.0,21116.0,1.658858]
[1673951228141,0.03209421,21117.0,21116.0,1.644858]
[1673951228419,0.10809421,21117.0,21116.0,2.59203452]
[1673951228689,0.03209421,21117.0,21116.0,3.16611026]
[1673951228943,0.10809421,21117.0,21116.0,3.16711026]
[1673951229460,0.03209421,21117.0,21116.0,3.16611026]
[1673951229731,0.03909421,21117.0,21116.0,3.18111026]
[1673951230202,0.03209421,21117.0,21116.0,3.16611026]
[1673951230457,0.03909421,21117.0,21116.0,3.18111026]
[1673951231509,0.03909421,21117.0,21116.0,3.54427158]
[1673951231510,0.03198417,21117.0,21116.0,3.54427158]
[1673951231770,0.03198417,21117.0,21116.0,3.16611026]
[1673951232026,0.03898417,21117.0,21116.0,3.18111026]
[1673951232310,0.03198417,21117.0,21116.0,3.16611026]
[1673951232571,0.03898417,21117.0,21116.0,3.18111026]
[1673951232839,0.03198417,21117.0,21116.0,3.16611026]
[1673951233110,0.03898417,21117.0,21116.0,3.18111026]
[1673951234148,0.03898417,21117.0,21116.0,3.92249158]
[1673951234402,0.03898417,21117.0,21116.0,4.75900852]
[1673951234653,0.08706001,21119.0,21117.0,0.1]
[1673951234938,0.08706001,21119.0,21118.0,2.77124369]
[1673951235214,0.08706001,21119.0,21118.0,3.07154369]
[1673951235423,0.08706001,21119.0,21118.0,3.37530996]
[1673951235940,0.08706001,21119.0,21118.0,3.51674036]
[1673951236208,0.09406001,21119.0,21118.0,3.39630996]
[1673951236726,0.0498438,21123.0,21119.0,0.1]
[1673951236989,0.0498438,21123.0,21122.0,0.1514]
[1673951237250,0.00404733,21126.0,21122.0,1.661103]
[1673951237527,0.00404733,21126.0,21125.0,0.0762]
[1673951237865,0.00404733,21126.0,21125.0,1.21366995]
[1673951238034,0.00404733,21126.0,21125.0,1.22372976]
[1673951238290,0.00440687,21126.0,21125.0,1.22372976]
[1673951238836,0.06704733,21126.0,21125.0,1.22672976]
[1673951239320,0.06704733,21126.0,21125.0,1.52672976]
[1673951240602,0.06704733,21126.0,21125.0,1.325944]
[1673951241434,0.06740687,21126.0,21125.0,1.325944]
[1673951241701,0.06704733,21126.0,21125.0,1.325944]
[1673951242482,0.00404733,21126.0,21125.0,1.322944]
[1673951242773,0.06704733,21126.0,21125.0,1.325944]
[1673951243026,0.32966917,21126.0,21125.0,0.003]
[1673951243285,0.75157917,21126.0,21125.0,0.003]
[1673951243544,0.65157917,21126.0,21125.0,0.003]
[1673951245951,0.79254647,21126.0,21125.0,0.003]
[1673951245953,0.79254647,21126.0,21122.0,0.54942]
[1673951245954,0.72954647,21126.0,21122.0,0.54942]
[1673951246220,0.32191,21125.0,21123.0,0.4737822]
[1673951246479,0.40763647,21126.0,21123.0,0.4737822]
[1673951246745,0.26666917,21126.0,21123.0,0.4737822]
[1673951247008,0.26666917,21126.0,21123.0,0.1737822]
[1673951247259,0.26702871,21126.0,21123.0,0.1737822]
[1673951247512,0.40799601,21126.0,21123.0,0.1737822]
[1673951247771,0.32191,21125.0,21121.0,0.473461]
[1673951248031,0.32191,21124.0,21123.0,0.001]
[1673951248284,0.43041,21124.0,21123.0,0.001]
[1673951248544,0.5713773,21124.0,21119.0,2.6599]
[1673951248796,0.33041,21123.0,21118.0,0.57910915]
[1673951249048,0.0085,21123.0,21118.0,0.57910915]
[1673951249311,0.1494673,21123.0,21118.0,0.75167847]
[1673951249611,0.32191,21122.0,21118.0,0.75167847]
[1673951249848,0.33076954,21121.0,21115.0,3.15254408]
[1673951250108,0.10885954,21121.0,21115.0,3.60395001]
[1673951250364,0.00885954,21121.0,21115.0,3.34327003]
[1673951250638,0.21586806,21121.0,21118.0,0.001]
[1673951250952,0.21586806,21121.0,21115.0,4.20617323]
[1673951251211,0.22286806,21121.0,21116.0,0.3]
[1673951251466,0.21586806,21121.0,21116.0,0.49072595]
[1673951251719,0.77933006,21121.0,21116.0,0.49072595]
[1673951251981,0.77933006,21121.0,21116.0,0.57551992]
[1673951252245,0.83029736,21121.0,21116.0,0.57551992]
[1673951252500,0.83029736,21121.0,21116.0,1.04908492]
[1673951252501,0.21550852,21121.0,21116.0,1.04908492]
[1673951253760,0.30550852,21121.0,21116.0,1.52265892]
[1673951254022,0.29700852,21121.0,21117.0,1.10881755]
[1673951254280,0.29700852,21121.0,21118.0,1.568961]
[1673951254550,0.29700852,21121.0,21119.0,0.39811]
[1673951254797,0.29700852,21121.0,21120.0,0.3]
[1673951255041,0.20700852,21121.0,21120.0,0.38479397]
[1673951255298,0.29700852,21121.0,21120.0,0.773484]
[1673951255854,0.19081887,21123.0,21120.0,0.773484]
[1673951256096,0.04985157,21123.0,21120.0,0.96420995]
[1673951256324,0.00035954,21122.0,21120.0,0.773484]
[1673951256622,0.04985157,21123.0,21120.0,0.92487359]
[1673951257578,0.04985157,21123.0,21119.0,0.549686]
[1673951257579,0.00035954,21122.0,21119.0,0.473486]
[1673951258099,0.14132684,21122.0,21119.0,0.473486]
[1673951258358,0.32191,21121.0,21118.0,0.473512]
[1673951258615,0.35277779,21122.0,21118.0,0.473512]
[1673951258877,0.32191,21121.0,21117.0,1.0023134]
[1673951259137,0.27098689,21121.0,21117.0,1.0023134]
[1673951259652,0.41195419,21121.0,21117.0,1.0023134]
[1673951259913,0.41195419,21121.0,21118.0,0.3]
[1673951260183,0.41195419,21121.0,21117.0,1.0023134]
[1673951260896,0.50195419,21121.0,21117.0,1.0023134]
[1673951261146,0.50195419,21121.0,21118.0,0.3]
[1673951261422,0.50195419,21121.0,21118.0,0.49072595]
[1673951261669,0.97541619,21121.0,21117.0,1.0023134]
[1673951261917,0.50195419,21121.0,21118.0,0.49666064]
[1673951262178,0.36098689,21121.0,21118.0,0.49666064]
[1673951263157,0.36098689,21121.0,21118.0,0.67018764]
[1673951263414,0.27098689,21121.0,21118.0,0.67018764]
[1673951263686,0.36198689,21121.0,21118.0,0.67018764]
[1673951264182,0.50295419,21121.0,21118.0,0.473527]
[1673951264710,0.50295419,21121.0,21119.0,0.3]
[1673951265508,0.50331373,21121.0,21119.0,0.3]
[1673951265786,0.50331373,21121.0,21118.0,0.473527]
[1673951266367,0.41231373,21121.0,21118.0,0.473527]
[1673951266641,0.50331373,21121.0,21118.0,0.473527]
[1673951266901,0.41231373,21121.0,21117.0,1.19304335]
[1673951267173,0.41231373,21121.0,21118.0,1.10112634]
[1673951267174,0.091,21121.0,21118.0,1.10112634]
[1673951267438,0.091,21121.0,21119.0,0.0761]
[1673951267690,0.091,21121.0,21120.0,0.795394]
[1673951267955,0.091,21121.0,21120.0,1.31789383]
[1673951268225,0.091,21121.0,21120.0,0.99598383]
[1673951268483,0.04985157,21123.0,21120.0,0.99598383]
[1673951268748,0.04985157,21123.0,21121.0,0.29988092]
[1673951269447,0.1409673,21124.0,21121.0,0.29988092]
[1673951269703,0.1409673,21124.0,21121.0,0.92634931]
[1673951269966,0.091,21123.0,21121.0,0.92634931]
[1673951270491,0.12431724,21123.0,21121.0,0.92634931]
[1673951270760,0.03331724,21123.0,21121.0,0.92634931]
[1673951271572,0.12431724,21123.0,21121.0,0.92634931]
[1673951271824,0.12467678,21123.0,21121.0,0.62646839]
[1673951272085,0.12467678,21123.0,21121.0,0.473459]
[1673951272344,0.12431724,21123.0,21121.0,0.473459]
[1673951272608,0.12431724,21123.0,21122.0,0.3]
[1673951272890,0.12431724,21123.0,21121.0,0.473459]
[1673951273640,0.12431724,21123.0,21121.0,0.69892252]
[1673951273913,0.12431724,21123.0,21122.0,0.3]
[1673951274176,0.12431724,21123.0,21122.0,0.376]
[1673951274433,0.12431724,21123.0,21122.0,1.64479]
[1673951274691,0.03331724,21123.0,21122.0,1.64479]
[1673951274962,0.03331724,21123.0,21122.0,1.89342865]
[1673951275761,0.11631724,21123.0,21122.0,1.89442865]
[1673951276559,0.03331724,21123.0,21122.0,1.89342865]
[1673951277134,0.04231724,21123.0,21122.0,1.97822865]
[1673951278477,0.04231724,21123.0,21122.0,2.45543034]
[1673951279008,0.04231724,21123.0,21122.0,1.97822865]
[1673951279272,0.04231724,21123.0,21122.0,1.90222865]
[1673951279546,0.04231724,21123.0,21122.0,1.58031865]
[1673951280071,0.04231724,21123.0,21122.0,1.90222865]
[1673951280576,0.04231724,21123.0,21122.0,1.65359]
[1673951281897,0.04231724,21123.0,21122.0,1.33168]
[1673951282454,0.04231724,21123.0,21122.0,1.65359]
[1673951282714,0.04231724,21123.0,21122.0,1.33168]
[1673951283241,0.04231724,21123.0,21122.0,1.03168]
[1673951284343,0.04231724,21123.0,21122.0,1.27683992]
[1673951284615,0.04231724,21123.0,21122.0,1.57683992]
[1673951284921,0.04224621,21123.0,21122.0,1.25588]
[1673951285691,0.04224621,21123.0,21122.0,1.33178]
[1673951288906,0.04224621,21123.0,21122.0,1.32928]
[1673951296477,0.04224621,21123.0,21122.0,1.65119]
[1673951296820,0.04224621,21123.0,21122.0,1.67174715]
[1673951303389,0.04224621,21123.0,21122.0,2.06925715]
[1673951303644,0.04224621,21123.0,21122.0,3.31803398]
[1673951303957,0.04224621,21123.0,21122.0,3.53017136]
[1673951304192,0.04224621,21123.0,21122.0,4.05228846]
[1673951304496,0.01985409,21123.0,21122.0,3.77005784]
[1673951304749,0.01985409,21123.0,21122.0,3.2881757]
[1673951304998,0.01985409,21123.0,21122.0,2.90113822]
[1673951305263,0.01985409,21123.0,21122.0,2.68869034]
[1673951305778,0.01985409,21123.0,21122.0,3.13877477]
[1673951306015,0.01985409,21123.0,21122.0,2.68869034]
[1673951306273,0.01985409,21123.0,21122.0,3.0675471]
[1673951306531,0.01985409,21123.0,21122.0,2.68874831]
[1673951307313,0.01985409,21123.0,21122.0,3.1388887]
[1673951307567,0.01985409,21123.0,21122.0,2.688755]
[1673951307880,0.01985409,21123.0,21122.0,1.02958]
[1673951308092,0.34176409,21123.0,21122.0,0.95338]
[1673951310707,0.44176409,21123.0,21122.0,0.009]
[1673951310969,0.48309093,21123.0,21122.0,0.009]
[1673951312040,0.8358853,21123.0,21122.0,0.009]
[1673951312316,0.55357458,21123.0,21122.0,0.009]
[1673951312569,0.9358853,21123.0,21122.0,0.009]
[1673951312846,1.08917954,21123.0,21122.0,0.009]
[1673951313109,0.87653435,21123.0,21122.0,0.009]
[1673951313394,1.69166274,21123.0,21122.0,0.009]
[1673951313937,2.6388054,21123.0,21122.0,0.009]
[1673951314197,1.69294623,21123.0,21122.0,0.009]
[1673951314465,1.09044438,21123.0,21122.0,0.009]
[1673951314735,1.55486138,21123.0,21118.0,0.473514]
[1673951314994,1.59163978,21123.0,21122.0,0.001]
[1673951315248,2.45734577,21123.0,21122.0,0.001]